[Event "Titled Tuesday Blitz April 4 Late 2023"]
[White "Sadhwani, Raunak"]
[Black "Vakhlamov, Igor L."]
[WhiteFideId "35093487"]
[BlackFideId "24126748"]
[WhiteElo "2631"]
[BlackElo "2400"]
[Result "1-0"]
[Round "09"]
[TimeControl "180+2"]
[Date "2023.04.04"]
[WhiteClock "0:01:19"]
[BlackClock "0:00:43"]

1. Nf3 {[%clk 0:03:00]}  d5 {[%clk 0:02:59]} 2. b3 {[%clk 0:02:59]}  Nf6 {[%clk 0:02:58]} 3. Bb2 {[%clk 0:02:59]}  e6 {[%clk 0:02:58]} 4. g3 {[%clk 0:02:59]}  Be7 {[%clk 0:02:58]} 5. Bg2 {[%clk 0:03:00]}  O-O {[%clk 0:02:58]} 6. O-O {[%clk 0:03:01]}  c5 {[%clk 0:02:59]} 7. c4 {[%clk 0:02:55]}  Nc6 {[%clk 0:02:57]} 8. e3 {[%clk 0:02:49]}  Re8 {[%clk 0:02:41]} 9. Qe2 {[%clk 0:02:49]}  b6 {[%clk 0:02:39]} 10. d3 {[%clk 0:02:45]}  Bb7 {[%clk 0:02:38]} 11. Na3 {[%clk 0:02:40]}  Qd7 {[%clk 0:02:34]} 12. Nc2 {[%clk 0:02:39]}  Rad8 {[%clk 0:02:34]} 13. Rad1 {[%clk 0:02:40]}  h6 {[%clk 0:02:28]} 14. Nfe1 {[%clk 0:02:37]}  e5 {[%clk 0:02:22]} 15. cxd5 {[%clk 0:02:12]}  Nxd5 {[%clk 0:02:23]} 16. Na3 {[%clk 0:02:13]}  Bd6 {[%clk 0:01:48]} 17. Bxd5 {[%clk 0:02:11]}  Nb4 {[%clk 0:01:38]} 18. Bxb7 {[%clk 0:02:08]}  Qxb7 {[%clk 0:01:39]} 19. Nc4 {[%clk 0:02:09]}  Nxa2 {[%clk 0:01:38]} 20. Nxd6 {[%clk 0:02:06]}  Rxd6 {[%clk 0:01:39]} 21. Bxe5 {[%clk 0:02:05]}  Rxe5 {[%clk 0:01:40]} 22. Qxa2 {[%clk 0:02:05]}  Qd7 {[%clk 0:01:37]} 23. d4 {[%clk 0:01:56]}  Rh5 {[%clk 0:01:26]} 24. Qe2 {[%clk 0:01:39]}  Qh3 {[%clk 0:01:23]} 25. f4 {[%clk 0:01:39]}  Rg6 {[%clk 0:01:15]} 26. Qg2 {[%clk 0:01:35]}  Qe6 {[%clk 0:01:14]} 27. e4 {[%clk 0:01:28]}  Qxb3 {[%clk 0:01:10]} 28. Qf3 {[%clk 0:01:25]}  Qxf3 {[%clk 0:00:46]} 29. Nxf3 {[%clk 0:01:26]}  cxd4 {[%clk 0:00:46]} 30. e5 {[%clk 0:01:25]}  f6 {[%clk 0:00:44]} 31. e6 {[%clk 0:01:20]}  f5 {[%clk 0:00:42]} 32. Rfe1 {[%clk 0:01:19]}  Kf8 {[%clk 0:00:41]} 33. Rxd4 {[%clk 0:01:19]}  Ke7 {[%clk 0:00:41]} 34. Rd7+ {[%clk 0:01:20]}  Ke8 {[%clk 0:00:42]} 35. Rxa7 {[%clk 0:01:20]}  Rxe6 {[%clk 0:00:43]} 36. Rxe6+ {[%clk 0:01:19]} 1-0


[Site "https://www.chess.com"]

[Event "Titled Tuesday Blitz April 4 Late 2023"]
[White "Kilic, Eray"]
[Black "Bluebaum, Matthias"]
[WhiteFideId "44517173"]
[BlackFideId "24651516"]
[WhiteElo "2328"]
[BlackElo "2638"]
[Result "0-1"]
[Round "09"]
[TimeControl "180+2"]
[Date "2023.04.04"]
[WhiteClock "0:00:09"]
[BlackClock "0:00:10"]

1. Nf3 {[%clk 0:02:57]}  d5 {[%clk 0:02:59]} 2. g3 {[%clk 0:02:57]}  Nf6 {[%clk 0:02:59]} 3. Bg2 {[%clk 0:02:57]}  e6 {[%clk 0:03:00]} 4. b3 {[%clk 0:02:58]}  Bd6 {[%clk 0:02:59]} 5. Bb2 {[%clk 0:02:58]}  O-O {[%clk 0:02:59]} 6. O-O {[%clk 0:02:56]}  Nc6 {[%clk 0:02:58]} 7. d4 {[%clk 0:02:56]}  a5 {[%clk 0:02:59]} 8. a4 {[%clk 0:02:52]}  b6 {[%clk 0:02:58]} 9. Re1 {[%clk 0:02:51]}  Ba6 {[%clk 0:02:57]} 10. Nbd2 {[%clk 0:02:51]}  Bb7 {[%clk 0:02:50]} 11. Ne5 {[%clk 0:02:41]}  Bxe5 {[%clk 0:02:30]} 12. dxe5 {[%clk 0:02:42]}  Nd7 {[%clk 0:02:31]} 13. e4 {[%clk 0:02:41]}  Ne7 {[%clk 0:02:21]} 14. exd5 {[%clk 0:02:40]}  Bxd5 {[%clk 0:02:21]} 15. Ne4 {[%clk 0:02:36]}  Qc8 {[%clk 0:02:14]} 16. c4 {[%clk 0:02:34]}  Bc6 {[%clk 0:02:14]} 17. Ba3 {[%clk 0:02:32]}  Re8 {[%clk 0:01:28]} 18. Bxe7 {[%clk 0:02:29]}  Rxe7 {[%clk 0:01:29]} 19. Nf6+ {[%clk 0:02:29]}  gxf6 {[%clk 0:01:30]} 20. Bxc6 {[%clk 0:02:29]}  Nxe5 {[%clk 0:01:30]} 21. Bxa8 {[%clk 0:02:29]}  Qxa8 {[%clk 0:01:31]} 22. Re3 {[%clk 0:02:29]}  Rd7 {[%clk 0:01:29]} 23. Qe2 {[%clk 0:02:28]}  Qd8 {[%clk 0:01:22]} 24. Rf1 {[%clk 0:01:56]}  Rd2 {[%clk 0:01:22]} 25. Qh5 {[%clk 0:01:55]}  Qd4 {[%clk 0:01:21]} 26. h3 {[%clk 0:01:46]}  Kg7 {[%clk 0:01:15]} 27. Qh4 {[%clk 0:01:09]}  Qxh4 {[%clk 0:01:15]} 28. gxh4 {[%clk 0:01:10]}  Ng6 {[%clk 0:01:16]} 29. Rg3 {[%clk 0:01:04]}  h5 {[%clk 0:01:13]} 30. f4 {[%clk 0:01:03]}  f5 {[%clk 0:01:13]} 31. Rg5 {[%clk 0:01:02]}  Kh6 {[%clk 0:01:14]} 32. Rg3 {[%clk 0:00:56]}  Nxh4 {[%clk 0:01:13]} 33. c5 {[%clk 0:00:56]}  Rc2 {[%clk 0:00:58]} 34. cxb6 {[%clk 0:00:55]}  cxb6 {[%clk 0:00:59]} 35. Rd1 {[%clk 0:00:47]}  Ng6 {[%clk 0:00:57]} 36. Rd4 {[%clk 0:00:46]}  h4 {[%clk 0:00:51]} 37. Rf3 {[%clk 0:00:44]}  Ne7 {[%clk 0:00:50]} 38. Rd7 {[%clk 0:00:43]}  Nd5 {[%clk 0:00:32]} 39. Rxf7 {[%clk 0:00:43]}  Kg6 {[%clk 0:00:32]} 40. Rb7 {[%clk 0:00:42]}  Rd2 {[%clk 0:00:26]} 41. Kf1 {[%clk 0:00:26]}  Rd4 {[%clk 0:00:23]} 42. Kf2 {[%clk 0:00:27]}  Rb4 {[%clk 0:00:22]} 43. Ke2 {[%clk 0:00:18]}  Nxf4+ {[%clk 0:00:23]} 44. Kd2 {[%clk 0:00:18]}  Nd5 {[%clk 0:00:22]} 45. Rb8 {[%clk 0:00:17]}  Kf6 {[%clk 0:00:22]} 46. Re8 {[%clk 0:00:16]}  Rd4+ {[%clk 0:00:20]} 47. Kc2 {[%clk 0:00:15]}  f4 {[%clk 0:00:19]} 48. Rh8 {[%clk 0:00:14]}  Kg5 {[%clk 0:00:15]} 49. Rg8+ {[%clk 0:00:13]}  Kf5 {[%clk 0:00:16]} 50. Rg4 {[%clk 0:00:13]}  e5 {[%clk 0:00:16]} 51. Rg8 {[%clk 0:00:12]}  e4 {[%clk 0:00:17]} 52. Rf8+ {[%clk 0:00:11]}  Ke5 {[%clk 0:00:17]} 53. Re8+ {[%clk 0:00:12]}  Kd6 {[%clk 0:00:18]} 54. Rd8+ {[%clk 0:00:11]}  Ke6 {[%clk 0:00:13]} 55. Rxf4 {[%clk 0:00:07]}  Nb4+ {[%clk 0:00:12]} 56. Kc3 {[%clk 0:00:06]}  Rxd8 {[%clk 0:00:13]} 57. Rxe4+ {[%clk 0:00:07]}  Kd5 {[%clk 0:00:12]} 58. Rxh4 {[%clk 0:00:08]}  Rc8+ {[%clk 0:00:11]} 59. Rc4 {[%clk 0:00:04]}  Rg8 {[%clk 0:00:09]} 60. Rd4+ {[%clk 0:00:03]}  Kc5 {[%clk 0:00:09]} 61. Rc4+ {[%clk 0:00:04]}  Kd6 {[%clk 0:00:09]} 62. Rh4 {[%clk 0:00:03]}  Rc8+ {[%clk 0:00:08]} 63. Kd4 {[%clk 0:00:02]}  Rc1 {[%clk 0:00:06]} 64. Rh6+ {[%clk 0:00:02]}  Kc7 {[%clk 0:00:06]} 65. Rh7+ {[%clk 0:00:03]}  Kc6 {[%clk 0:00:06]} 66. Rh6+ {[%clk 0:00:03]}  Kb7 {[%clk 0:00:07]} 67. Rh7+ {[%clk 0:00:04]}  Ka6 {[%clk 0:00:07]} 68. h4 {[%clk 0:00:04]}  Rd1+ {[%clk 0:00:05]} 69. Kc3 {[%clk 0:00:04]}  Rd3+ {[%clk 0:00:05]} 70. Kc4 {[%clk 0:00:04]}  Rh3 {[%clk 0:00:05]} 71. h5 {[%clk 0:00:05]}  Nc6 {[%clk 0:00:05]} 72. Kd5 {[%clk 0:00:04]}  Nb4+ {[%clk 0:00:04]} 73. Kc4 {[%clk 0:00:05]}  Nc2 {[%clk 0:00:05]} 74. h6 {[%clk 0:00:04]}  Ne3+ {[%clk 0:00:05]} 75. Kd4 {[%clk 0:00:03]}  Rxh6 {[%clk 0:00:05]} 76. Rf7 {[%clk 0:00:01]}  Nc2+ {[%clk 0:00:06]} 77. Kd5 {[%clk 0:00:02]}  Nb4+ {[%clk 0:00:06]} 78. Kd4 {[%clk 0:00:02]}  Rd6+ {[%clk 0:00:06]} 79. Ke5 {[%clk 0:00:02]}  Rc6 {[%clk 0:00:07]} 80. Rf3 {[%clk 0:00:02]}  Kb7 {[%clk 0:00:07]} 81. Rg3 {[%clk 0:00:03]}  Rc7 {[%clk 0:00:07]} 82. Kd6 {[%clk 0:00:03]}  Rc6+ {[%clk 0:00:07]} 83. Kd7 {[%clk 0:00:04]}  Na6 {[%clk 0:00:08]} 84. Rh3 {[%clk 0:00:04]}  Nc5+ {[%clk 0:00:08]} 85. Ke7 {[%clk 0:00:04]}  Re6+ {[%clk 0:00:07]} 86. Kf7 {[%clk 0:00:05]}  Re4 {[%clk 0:00:08]} 87. Kf6 {[%clk 0:00:05]}  Rb4 {[%clk 0:00:08]} 88. Ke5 {[%clk 0:00:06]}  Rxb3 {[%clk 0:00:08]} 89. Rh7+ {[%clk 0:00:04]}  Ka6 {[%clk 0:00:08]} 90. Rh8 {[%clk 0:00:05]}  Rd3 {[%clk 0:00:06]} 91. Ra8+ {[%clk 0:00:05]}  Kb7 {[%clk 0:00:07]} 92. Rh8 {[%clk 0:00:05]}  Nxa4 {[%clk 0:00:07]} 93. Ke4 {[%clk 0:00:06]}  Nc5+ {[%clk 0:00:08]} 94. Ke5 {[%clk 0:00:07]}  a4 {[%clk 0:00:08]} 95. Rh1 {[%clk 0:00:08]}  a3 {[%clk 0:00:09]} 96. Ra1 {[%clk 0:00:09]}  Ka6 {[%clk 0:00:09]} 97. Rc1 {[%clk 0:00:09]}  Kb5 {[%clk 0:00:10]} 0-1


[Site "https://www.chess.com"]

[Event "Titled Tuesday Blitz April 4 Late 2023"]
[White "Aydincelebi, Kagan"]
[Black "Kollars, Dmitrij"]
[WhiteFideId "6361102"]
[BlackFideId "12909572"]
[WhiteElo "2180"]
[BlackElo "2584"]
[Result "0-1"]
[Round "09"]
[TimeControl "180+2"]
[Date "2023.04.04"]
[WhiteClock "0:00:29"]
[BlackClock "0:00:51"]

1. e4 {[%clk 0:03:00]}  e5 {[%clk 0:02:59]} 2. Nf3 {[%clk 0:03:01]}  Nc6 {[%clk 0:02:59]} 3. Bb5 {[%clk 0:03:01]}  a6 {[%clk 0:02:58]} 4. Ba4 {[%clk 0:03:02]}  Nf6 {[%clk 0:02:59]} 5. O-O {[%clk 0:03:02]}  Bc5 {[%clk 0:02:59]} 6. c3 {[%clk 0:02:59]}  b5 {[%clk 0:02:59]} 7. Bb3 {[%clk 0:02:59]}  d6 {[%clk 0:02:59]} 8. d4 {[%clk 0:02:57]}  Bb6 {[%clk 0:02:59]} 9. Be3 {[%clk 0:02:56]}  O-O {[%clk 0:02:58]} 10. h3 {[%clk 0:02:55]}  Bb7 {[%clk 0:02:50]} 11. Nbd2 {[%clk 0:02:55]}  h6 {[%clk 0:02:47]} 12. Re1 {[%clk 0:02:51]}  Re8 {[%clk 0:02:45]} 13. d5 {[%clk 0:02:42]}  Ne7 {[%clk 0:02:39]} 14. Bxb6 {[%clk 0:02:38]}  cxb6 {[%clk 0:02:40]} 15. a4 {[%clk 0:02:38]}  bxa4 {[%clk 0:02:39]} 16. Bxa4 {[%clk 0:02:39]}  Rf8 {[%clk 0:02:39]} 17. Nf1 {[%clk 0:02:33]}  Nd7 {[%clk 0:02:29]} 18. Ng3 {[%clk 0:02:31]}  g6 {[%clk 0:02:16]} 19. Qd2 {[%clk 0:02:10]}  Kg7 {[%clk 0:02:15]} 20. Bc2 {[%clk 0:02:08]}  a5 {[%clk 0:02:04]} 21. Bd3 {[%clk 0:02:05]}  Qc7 {[%clk 0:02:00]} 22. Bb5 {[%clk 0:02:00]}  Nc5 {[%clk 0:02:00]} 23. Qe3 {[%clk 0:01:51]}  a4 {[%clk 0:01:52]} 24. Nd2 {[%clk 0:01:50]}  Ra5 {[%clk 0:01:50]} 25. Bf1 {[%clk 0:01:48]}  Bc8 {[%clk 0:01:43]} 26. Nc4 {[%clk 0:01:39]}  Ra7 {[%clk 0:01:43]} 27. Na3 {[%clk 0:01:39]}  Bd7 {[%clk 0:01:40]} 28. Nb5 {[%clk 0:01:39]}  Bxb5 {[%clk 0:01:40]} 29. Bxb5 {[%clk 0:01:40]}  Ra5 {[%clk 0:01:39]} 30. Bf1 {[%clk 0:01:38]}  f5 {[%clk 0:01:32]} 31. exf5 {[%clk 0:01:35]}  Nxf5 {[%clk 0:01:33]} 32. Nxf5+ {[%clk 0:01:33]}  Rxf5 {[%clk 0:01:34]} 33. Be2 {[%clk 0:01:23]}  Qf7 {[%clk 0:01:30]} 34. Bg4 {[%clk 0:01:22]}  Rf6 {[%clk 0:01:30]} 35. h4 {[%clk 0:01:15]}  Qxd5 {[%clk 0:01:14]} 36. Rad1 {[%clk 0:01:10]}  Qc4 {[%clk 0:01:13]} 37. Qh3 {[%clk 0:00:50]}  Qf4 {[%clk 0:00:59]} 38. Re2 {[%clk 0:00:44]}  h5 {[%clk 0:00:58]} 39. Bc8 {[%clk 0:00:40]}  Ra7 {[%clk 0:00:57]} 40. g3 {[%clk 0:00:33]}  Qf3 {[%clk 0:00:57]} 41. Red2 {[%clk 0:00:33]}  Ne4 {[%clk 0:00:52]} 42. Rc2 {[%clk 0:00:29]}  Nxf2 {[%clk 0:00:51]} 0-1


[Site "https://www.chess.com"]

[Event "Titled Tuesday Blitz April 4 Late 2023"]
[White "Kravtsiv, Martyn"]
[Black "Ezat, Mohamed"]
[WhiteFideId "14113147"]
[BlackFideId "10600906"]
[WhiteElo "2695"]
[BlackElo "2386"]
[Result "1-0"]
[Round "09"]
[TimeControl "180+2"]
[Date "2023.04.04"]
[WhiteClock "0:01:23"]
[BlackClock "0:00:58"]

1. e4 {[%clk 0:02:56]}  c6 {[%clk 0:02:58]} 2. Nf3 {[%clk 0:02:54]}  d5 {[%clk 0:02:56]} 3. d3 {[%clk 0:02:55]}  dxe4 {[%clk 0:02:55]} 4. dxe4 {[%clk 0:02:56]}  Qxd1+ {[%clk 0:02:55]} 5. Kxd1 {[%clk 0:02:56]}  Bg4 {[%clk 0:02:55]} 6. Be2 {[%clk 0:02:54]}  Nd7 {[%clk 0:02:55]} 7. Nbd2 {[%clk 0:02:53]}  e5 {[%clk 0:02:54]} 8. Ne1 {[%clk 0:02:51]}  Be6 {[%clk 0:02:50]} 9. Nd3 {[%clk 0:02:46]}  f6 {[%clk 0:02:44]} 10. c3 {[%clk 0:02:45]}  Nc5 {[%clk 0:02:44]} 11. Kc2 {[%clk 0:02:44]}  Nxd3 {[%clk 0:02:44]} 12. Bxd3 {[%clk 0:02:44]}  Bc5 {[%clk 0:02:44]} 13. f3 {[%clk 0:02:37]}  O-O-O {[%clk 0:02:40]} 14. Nb3 {[%clk 0:02:32]}  Bb6 {[%clk 0:02:39]} 15. Rd1 {[%clk 0:02:31]}  Ne7 {[%clk 0:02:37]} 16. a4 {[%clk 0:02:25]}  a6 {[%clk 0:02:35]} 17. c4 {[%clk 0:02:13]}  Ng6 {[%clk 0:02:30]} 18. Bd2 {[%clk 0:01:58]}  Nh4 {[%clk 0:02:19]} 19. Bf1 {[%clk 0:01:57]}  g5 {[%clk 0:02:08]} 20. Bb4 {[%clk 0:01:52]}  Ng6 {[%clk 0:02:05]} 21. a5 {[%clk 0:01:46]}  Ba7 {[%clk 0:02:03]} 22. Bc5 {[%clk 0:01:36]}  Bxc5 {[%clk 0:02:01]} 23. Nxc5 {[%clk 0:01:37]}  Bf7 {[%clk 0:02:00]} 24. b4 {[%clk 0:01:37]}  Nf4 {[%clk 0:01:58]} 25. b5 {[%clk 0:01:34]}  Ne6 {[%clk 0:01:53]} 26. Nxe6 {[%clk 0:01:31]}  Bxe6 {[%clk 0:01:52]} 27. bxa6 {[%clk 0:01:31]}  bxa6 {[%clk 0:01:52]} 28. c5 {[%clk 0:01:32]}  Kb7 {[%clk 0:01:13]} 29. Rab1+ {[%clk 0:01:29]}  Kc7 {[%clk 0:01:06]} 30. Bxa6 {[%clk 0:01:24]}  Rxd1 {[%clk 0:01:04]} 31. Rb7+ {[%clk 0:01:24]}  Kd8 {[%clk 0:01:00]} 32. Kxd1 {[%clk 0:01:24]}  Bd7 {[%clk 0:00:58]} 33. Rb8+ {[%clk 0:01:23]} 1-0


[Site "https://www.chess.com"]

[Event "Titled Tuesday Blitz April 4 Late 2023"]
[White "Makhnev, Denis"]
[Black "Goltsev, Dmitry"]
[WhiteFideId "13707647"]
[BlackFideId "24176710"]
[WhiteElo "2515"]
[BlackElo "2336"]
[Result "1-0"]
[Round "09"]
[TimeControl "180+2"]
[Date "2023.04.04"]
[WhiteClock "0:00:06"]
[BlackClock "0:00:02"]

1. d4 {[%clk 0:03:00]}  Nf6 {[%clk 0:02:55]} 2. c4 {[%clk 0:03:00]}  e6 {[%clk 0:02:55]} 3. Nf3 {[%clk 0:03:01]}  b6 {[%clk 0:02:53]} 4. g3 {[%clk 0:03:00]}  Ba6 {[%clk 0:02:53]} 5. Qc2 {[%clk 0:03:00]}  Bb4+ {[%clk 0:02:51]} 6. Bd2 {[%clk 0:03:00]}  Be7 {[%clk 0:02:50]} 7. Bg2 {[%clk 0:02:59]}  d5 {[%clk 0:02:49]} 8. Ne5 {[%clk 0:02:31]}  O-O {[%clk 0:02:46]} 9. O-O {[%clk 0:02:31]}  c5 {[%clk 0:02:33]} 10. dxc5 {[%clk 0:02:29]}  Bxc5 {[%clk 0:02:28]} 11. Nc3 {[%clk 0:01:59]}  Bd4 {[%clk 0:02:13]} 12. cxd5 {[%clk 0:01:59]}  exd5 {[%clk 0:01:28]} 13. Nf3 {[%clk 0:01:58]}  Bc5 {[%clk 0:01:28]} 14. Bg5 {[%clk 0:01:57]}  Nbd7 {[%clk 0:01:19]} 15. Nxd5 {[%clk 0:01:56]}  h6 {[%clk 0:01:20]} 16. Bh4 {[%clk 0:01:35]}  Rc8 {[%clk 0:01:16]} 17. Qf5 {[%clk 0:00:37]}  Bxe2 {[%clk 0:01:08]} 18. Rfe1 {[%clk 0:00:37]}  Re8 {[%clk 0:01:07]} 19. Nxf6+ {[%clk 0:00:29]}  Nxf6 {[%clk 0:01:07]} 20. Ne5 {[%clk 0:00:29]}  Bxf2+ {[%clk 0:00:25]} 21. Qxf2 {[%clk 0:00:23]}  Rxe5 {[%clk 0:00:25]} 22. Bxf6 {[%clk 0:00:23]}  Qxf6 {[%clk 0:00:19]} 23. Rxe2 {[%clk 0:00:24]}  Rxe2 {[%clk 0:00:16]} 24. Qxe2 {[%clk 0:00:24]}  Qd4+ {[%clk 0:00:17]} 25. Kh1 {[%clk 0:00:24]}  Rd8 {[%clk 0:00:14]} 26. Re1 {[%clk 0:00:19]}  Qb4 {[%clk 0:00:13]} 27. a3 {[%clk 0:00:16]}  Qb3 {[%clk 0:00:12]} 28. Bf3 {[%clk 0:00:13]}  g6 {[%clk 0:00:08]} 29. Kg2 {[%clk 0:00:13]}  Rd3 {[%clk 0:00:06]} 30. Be4 {[%clk 0:00:07]}  Rd4 {[%clk 0:00:04]} 31. Bf3 {[%clk 0:00:04]}  Rd3 {[%clk 0:00:01]} 32. Qf2 {[%clk 0:00:05]}  Kg7 {[%clk 0:00:01]} 33. Re2 {[%clk 0:00:05]}  Qc4 {[%clk 0:00:02]} 34. Rd2 {[%clk 0:00:05]}  Rb3 {[%clk 0:00:01]} 35. Bd5 {[%clk 0:00:05]}  Qb5 {[%clk 0:00:02]} 36. Qxf7+ {[%clk 0:00:05]}  Kh8 {[%clk 0:00:02]} 37. Qg8# {[%clk 0:00:06]} 1-0


[Site "https://www.chess.com"]

[Event "Titled Tuesday Blitz April 4 Late 2023"]
[White "Papasimakopoulos, Alexandros"]
[Black "Makarian, Rudik"]
[WhiteFideId "4244125"]
[BlackFideId "44105681"]
[WhiteElo "2359"]
[BlackElo "2430"]
[Result "0-1"]
[Round "09"]
[TimeControl "180+2"]
[Date "2023.04.04"]
[WhiteClock "0:00:01"]
[BlackClock "0:00:09"]

1. d4 {[%clk 0:03:00]}  Nf6 {[%clk 0:02:59]} 2. c4 {[%clk 0:03:00]}  e6 {[%clk 0:02:58]} 3. Nc3 {[%clk 0:03:00]}  d5 {[%clk 0:02:55]} 4. cxd5 {[%clk 0:03:00]}  exd5 {[%clk 0:02:56]} 5. Bg5 {[%clk 0:03:01]}  c6 {[%clk 0:02:55]} 6. e3 {[%clk 0:03:01]}  h6 {[%clk 0:02:56]} 7. Bh4 {[%clk 0:03:01]}  Be7 {[%clk 0:02:55]} 8. Bd3 {[%clk 0:03:01]}  O-O {[%clk 0:02:56]} 9. Qc2 {[%clk 0:03:01]}  Nbd7 {[%clk 0:02:56]} 10. Nf3 {[%clk 0:03:01]}  Re8 {[%clk 0:02:55]} 11. O-O {[%clk 0:03:01]}  Ne4 {[%clk 0:02:56]} 12. Bxe7 {[%clk 0:02:59]}  Qxe7 {[%clk 0:02:57]} 13. Bxe4 {[%clk 0:03:00]}  dxe4 {[%clk 0:02:57]} 14. Nd2 {[%clk 0:03:01]}  Nf6 {[%clk 0:02:57]} 15. Rab1 {[%clk 0:03:00]}  h5 {[%clk 0:02:30]} 16. b4 {[%clk 0:02:58]}  a6 {[%clk 0:02:28]} 17. a4 {[%clk 0:02:58]}  h4 {[%clk 0:02:28]} 18. h3 {[%clk 0:02:58]}  Bf5 {[%clk 0:02:28]} 19. Ne2 {[%clk 0:02:56]}  Qd7 {[%clk 0:02:19]} 20. Nc4 {[%clk 0:02:41]}  Rad8 {[%clk 0:02:16]} 21. Ne5 {[%clk 0:02:39]}  Qc8 {[%clk 0:02:07]} 22. b5 {[%clk 0:02:38]}  axb5 {[%clk 0:02:07]} 23. axb5 {[%clk 0:02:38]}  c5 {[%clk 0:02:06]} 24. Rfc1 {[%clk 0:02:19]}  cxd4 {[%clk 0:02:06]} 25. Qxc8 {[%clk 0:02:19]}  Rxc8 {[%clk 0:01:51]} 26. Rxc8 {[%clk 0:02:16]}  Bxc8 {[%clk 0:01:52]} 27. exd4 {[%clk 0:02:15]}  Nd5 {[%clk 0:01:52]} 28. Rc1 {[%clk 0:02:09]}  Be6 {[%clk 0:01:41]} 29. Nc4 {[%clk 0:01:38]}  Rd8 {[%clk 0:01:22]} 30. Na5 {[%clk 0:01:27]}  b6 {[%clk 0:01:01]} 31. Nc6 {[%clk 0:01:25]}  Ra8 {[%clk 0:01:00]} 32. Nc3 {[%clk 0:01:20]}  Nxc3 {[%clk 0:00:58]} 33. Rxc3 {[%clk 0:01:21]}  Ra1+ {[%clk 0:00:57]} 34. Kh2 {[%clk 0:01:21]}  Ra2 {[%clk 0:00:47]} 35. d5 {[%clk 0:01:21]}  Bd7 {[%clk 0:00:46]} 36. Ne5 {[%clk 0:00:56]}  Bxb5 {[%clk 0:00:42]} 37. Rc8+ {[%clk 0:00:35]}  Kh7 {[%clk 0:00:41]} 38. Nxf7 {[%clk 0:00:36]}  Kg6 {[%clk 0:00:29]} 39. Ne5+ {[%clk 0:00:35]}  Kf5 {[%clk 0:00:27]} 40. Ng4 {[%clk 0:00:35]}  Be2 {[%clk 0:00:16]} 41. Rf8+ {[%clk 0:00:35]}  Kg5 {[%clk 0:00:14]} 42. Ne5 {[%clk 0:00:32]}  Rd2 {[%clk 0:00:13]} 43. d6 {[%clk 0:00:32]}  Bb5 {[%clk 0:00:10]} 44. Rb8 {[%clk 0:00:29]}  Rd5 {[%clk 0:00:09]} 45. Ng4 {[%clk 0:00:01]}  Rxd6 {[%clk 0:00:09]} 46. Ne3 {[%clk 0:00:02]}  Bd7 {[%clk 0:00:08]} 47. Rb7 {[%clk 0:00:01]}  b5 {[%clk 0:00:08]} 48. Rb8 {[%clk 0:00:01]}  Kf4 {[%clk 0:00:08]} 49. Rb7 {[%clk 0:00:01]}  Ke5 {[%clk 0:00:09]} 50. Rb8 {[%clk 0:00:01]}  Kd4 {[%clk 0:00:09]} 0-1


[Site "https://www.chess.com"]

[Event "Titled Tuesday Blitz April 4 Late 2023"]
[White "tuschessCM1"]
[Black "Hansen, Eric"]
[BlackFideId "2606771"]
[WhiteElo "2743"]
[BlackElo "2561"]
[Result "1-0"]
[Round "09"]
[TimeControl "180+2"]
[Date "2023.04.04"]
[WhiteClock "0:00:17"]
[BlackClock "0:00:11"]

1. c4 {[%clk 0:03:00]}  e5 {[%clk 0:02:27]} 2. g3 {[%clk 0:02:59]}  Nf6 {[%clk 0:02:25]} 3. Bg2 {[%clk 0:02:59]}  d5 {[%clk 0:02:25]} 4. cxd5 {[%clk 0:02:59]}  Nxd5 {[%clk 0:02:25]} 5. Nf3 {[%clk 0:03:00]}  Nc6 {[%clk 0:02:25]} 6. O-O {[%clk 0:03:00]}  Nb6 {[%clk 0:02:21]} 7. b3 {[%clk 0:03:00]}  Bd6 {[%clk 0:02:12]} 8. Bb2 {[%clk 0:03:00]}  O-O {[%clk 0:02:13]} 9. Nc3 {[%clk 0:02:58]}  Re8 {[%clk 0:02:14]} 10. Rc1 {[%clk 0:02:51]}  Bf5 {[%clk 0:01:57]} 11. Nh4 {[%clk 0:02:44]}  Bd7 {[%clk 0:01:54]} 12. Ne4 {[%clk 0:02:43]}  Qe7 {[%clk 0:01:52]} 13. e3 {[%clk 0:01:56]}  Rad8 {[%clk 0:01:51]} 14. f4 {[%clk 0:01:49]}  Ba3 {[%clk 0:01:46]} 15. Bxa3 {[%clk 0:01:35]}  Qxa3 {[%clk 0:01:47]} 16. Qh5 {[%clk 0:01:29]}  exf4 {[%clk 0:01:42]} 17. Ng5 {[%clk 0:01:20]}  Be6 {[%clk 0:00:51]} 18. Qxh7+ {[%clk 0:01:17]}  Kf8 {[%clk 0:00:51]} 19. gxf4 {[%clk 0:00:41]}  Rxd2 {[%clk 0:00:50]} 20. f5 {[%clk 0:00:30]}  Rxg2+ {[%clk 0:00:32]} 21. Nxg2 {[%clk 0:00:28]}  Bd5 {[%clk 0:00:32]} 22. Nf4 {[%clk 0:00:17]}  Qb2 {[%clk 0:00:20]} 23. f6 {[%clk 0:00:17]}  Re5 {[%clk 0:00:11]} 24. Qh8# {[%clk 0:00:17]} 1-0


[Site "https://www.chess.com"]

[Event "Titled Tuesday Blitz April 4 Late 2023"]
[White "Melkumyan, Hrant"]
[Black "Thomforde-Toates, Noah"]
[WhiteFideId "13302485"]
[BlackFideId "30951992"]
[WhiteElo "2604"]
[BlackElo "2713"]
[Result "0-1"]
[Round "09"]
[TimeControl "180+2"]
[Date "2023.04.04"]
[WhiteClock "0:01:41"]
[BlackClock "0:01:29"]

1. d4 {[%clk 0:03:00]}  Nf6 {[%clk 0:03:00]} 2. c4 {[%clk 0:03:00]}  g6 {[%clk 0:03:00]} 3. Nc3 {[%clk 0:02:59]}  Bg7 {[%clk 0:03:00]} 4. e4 {[%clk 0:02:59]}  d6 {[%clk 0:03:01]} 5. Be2 {[%clk 0:02:59]}  O-O {[%clk 0:03:01]} 6. h4 {[%clk 0:03:00]}  c5 {[%clk 0:02:57]} 7. d5 {[%clk 0:03:00]}  e6 {[%clk 0:02:58]} 8. h5 {[%clk 0:03:00]}  exd5 {[%clk 0:02:57]} 9. exd5 {[%clk 0:03:01]}  Re8 {[%clk 0:02:56]} 10. h6 {[%clk 0:03:00]}  Bh8 {[%clk 0:02:56]} 11. Bg5 {[%clk 0:03:00]}  Qa5 {[%clk 0:02:56]} 12. Kf1 {[%clk 0:02:56]}  Bf5 {[%clk 0:02:55]} 13. f3 {[%clk 0:02:52]}  Na6 {[%clk 0:02:47]} 14. g4 {[%clk 0:02:51]}  Bc8 {[%clk 0:02:45]} 15. Nh3 {[%clk 0:02:49]}  Nd7 {[%clk 0:02:45]} 16. Nf2 {[%clk 0:02:43]}  Nc7 {[%clk 0:02:36]} 17. Nfe4 {[%clk 0:02:37]}  Qa6 {[%clk 0:02:31]} 18. a4 {[%clk 0:02:31]}  Ne5 {[%clk 0:02:30]} 19. Nf6+ {[%clk 0:02:16]}  Bxf6 {[%clk 0:02:27]} 20. Bxf6 {[%clk 0:02:17]}  Nxc4 {[%clk 0:02:16]} 21. Kf2 {[%clk 0:02:17]}  Ne3 {[%clk 0:02:12]} 22. Qd2 {[%clk 0:02:16]}  Qa5 {[%clk 0:02:05]} 23. Bg5 {[%clk 0:02:11]}  Ncxd5 {[%clk 0:01:54]} 24. Nxd5 {[%clk 0:02:11]}  Qxd2 {[%clk 0:01:53]} 25. Nf6+ {[%clk 0:02:04]}  Kh8 {[%clk 0:01:52]} 26. Nxe8 {[%clk 0:02:03]}  Nxg4+ {[%clk 0:01:52]} 27. fxg4 {[%clk 0:01:55]}  Qxg5 {[%clk 0:01:52]} 28. Rad1 {[%clk 0:01:52]}  Bxg4 {[%clk 0:01:49]} 29. Nxd6 {[%clk 0:01:47]}  Qf4+ {[%clk 0:01:47]} 30. Ke1 {[%clk 0:01:47]}  Qe3 {[%clk 0:01:34]} 31. Rh2 {[%clk 0:01:41]}  Qg1+ {[%clk 0:01:29]} 0-1


[Site "https://www.chess.com"]